[Event "Titled Tuesday Blitz August 15 Early 2023"]
[White "Sava, Christiansen-Danut-Eugen"]
[Black "Novikov, Evgenij"]
[WhiteFideId "1210114"]
[BlackFideId "4125380"]
[WhiteElo "2152"]
[BlackElo "2417"]
[Result "0-1"]
[Round "6"]
[TimeControl "180+1"]
[Date "2023.08.15"]
[WhiteClock "0:00:00"]
[BlackClock "0:00:14"]
[Board "156"]

1. d4 {[%clk 0:03:00]}  d5 {[%clk 0:02:59]} 2. c4 {[%clk 0:02:57]}  e6 {[%clk 0:02:58]} 3. g3 {[%clk 0:02:56]}  Nf6 {[%clk 0:02:58]} 4. Bg2 {[%clk 0:02:57]}  Bb4+ {[%clk 0:02:57]} 5. Bd2 {[%clk 0:02:56]}  Qe7 {[%clk 0:02:52]} 6. Nf3 {[%clk 0:02:55]}  O-O {[%clk 0:02:51]} 7. a3 {[%clk 0:02:54]}  Bxd2+ {[%clk 0:02:49]} 8. Nbxd2 {[%clk 0:02:55]}  c5 {[%clk 0:02:46]} 9. cxd5 {[%clk 0:02:54]}  exd5 {[%clk 0:02:39]} 10. dxc5 {[%clk 0:02:54]}  Qxc5 {[%clk 0:02:34]} 11. O-O {[%clk 0:02:53]}  Nc6 {[%clk 0:02:30]} 12. b4 {[%clk 0:02:51]}  Qe7 {[%clk 0:02:21]} 13. Nb3 {[%clk 0:02:50]}  Bf5 {[%clk 0:02:13]} 14. Nbd4 {[%clk 0:02:47]}  Be4 {[%clk 0:02:11]} 15. Rc1 {[%clk 0:02:41]}  Rac8 {[%clk 0:02:09]} 16. Nxc6 {[%clk 0:02:40]}  Rxc6 {[%clk 0:02:04]} 17. Nd4 {[%clk 0:02:38]}  Rxc1 {[%clk 0:01:56]} 18. Qxc1 {[%clk 0:02:38]}  Bxg2 {[%clk 0:01:56]} 19. Kxg2 {[%clk 0:02:39]}  Qe4+ {[%clk 0:01:56]} 20. Nf3 {[%clk 0:02:37]}  Qxe2 {[%clk 0:01:55]} 21. Re1 {[%clk 0:02:32]}  Qd3 {[%clk 0:01:52]} 22. Rd1 {[%clk 0:02:32]}  Qc4 {[%clk 0:01:47]} 23. Qe3 {[%clk 0:02:19]}  a6 {[%clk 0:01:42]} 24. Rd4 {[%clk 0:02:17]}  Qc6 {[%clk 0:01:39]} 25. Ne5 {[%clk 0:02:15]}  Qe6 {[%clk 0:01:37]} 26. f4 {[%clk 0:01:35]}  Re8 {[%clk 0:01:36]} 27. Qd3 {[%clk 0:01:32]}  h5 {[%clk 0:01:34]} 28. a4 {[%clk 0:01:22]}  Rc8 {[%clk 0:01:32]} 29. Nf3 {[%clk 0:01:09]}  Ng4 {[%clk 0:01:25]} 30. h3 {[%clk 0:00:47]}  Rc2+ {[%clk 0:01:23]} 31. Nd2 {[%clk 0:00:45]}  Ne3+ {[%clk 0:01:14]} 32. Kf3 {[%clk 0:00:41]}  Nf5 {[%clk 0:01:11]} 33. Rxd5 {[%clk 0:00:33]}  Qc6 {[%clk 0:00:38]} 34. b5 {[%clk 0:00:13]}  axb5 {[%clk 0:00:35]} 35. axb5 {[%clk 0:00:14]}  Qc3 {[%clk 0:00:32]} 36. g4 {[%clk 0:00:09]}  hxg4+ {[%clk 0:00:29]} 37. hxg4 {[%clk 0:00:09]}  Nh4+ {[%clk 0:00:27]} 38. Kg3 {[%clk 0:00:09]}  Ng6 {[%clk 0:00:23]} 39. Rd8+ {[%clk 0:00:07]}  Kh7 {[%clk 0:00:23]} 40. f5 {[%clk 0:00:05]}  Qe5+ {[%clk 0:00:20]} 41. Kf2 {[%clk 0:00:02]}  Qh2+ {[%clk 0:00:18]} 42. Ke3 {[%clk 0:00:01]}  Qf4+ {[%clk 0:00:17]} 43. Ke2 {[%clk 0:00:01]}  Qxg4+ {[%clk 0:00:18]} 44. Ke1 {[%clk 0:00:01]}  Qg1+ {[%clk 0:00:17]} 45. Ke2 {[%clk 0:00:02]}  Nf4+ {[%clk 0:00:16]} 46. Kf3 {[%clk 0:00:00]}  Nxd3 {[%clk 0:00:14]} 0-1


[Site "https://www.chess.com"]

[Event "Titled Tuesday Blitz August 15 Early 2023"]
[White "Seifert, Henryk"]
[Black "Rom, Jasper"]
[WhiteFideId "1100963"]
[BlackFideId "2023733"]
[WhiteElo "2073"]
[BlackElo "2412"]
[Result "1-0"]
[Round "6"]
[TimeControl "180+1"]
[Date "2023.08.15"]
[WhiteClock "0:00:03"]
[BlackClock "0:00:00"]
[Board "158"]

1. e4 {[%clk 0:03:00]}  e6 {[%clk 0:02:56]} 2. d4 {[%clk 0:02:59]}  d5 {[%clk 0:02:55]} 3. Nd2 {[%clk 0:02:59]}  Be7 {[%clk 0:02:53]} 4. Ngf3 {[%clk 0:02:58]}  Nf6 {[%clk 0:02:53]} 5. e5 {[%clk 0:02:55]}  Nfd7 {[%clk 0:02:53]} 6. c3 {[%clk 0:02:54]}  c5 {[%clk 0:02:52]} 7. Bd3 {[%clk 0:02:51]}  Nc6 {[%clk 0:02:52]} 8. O-O {[%clk 0:02:49]}  a5 {[%clk 0:02:51]} 9. a4 {[%clk 0:02:48]}  g5 {[%clk 0:02:42]} 10. Bb5 {[%clk 0:02:24]}  g4 {[%clk 0:02:33]} 11. Ne1 {[%clk 0:02:24]}  h5 {[%clk 0:02:34]} 12. dxc5 {[%clk 0:01:59]}  Ndxe5 {[%clk 0:02:18]} 13. f4 {[%clk 0:01:41]}  Bxc5+ {[%clk 0:02:11]} 14. Kh1 {[%clk 0:01:42]}  Ng6 {[%clk 0:02:07]} 15. Nb3 {[%clk 0:01:35]}  Bd6 {[%clk 0:02:05]} 16. Nd3 {[%clk 0:01:32]}  f5 {[%clk 0:01:57]} 17. Nd4 {[%clk 0:01:22]}  Bd7 {[%clk 0:01:56]} 18. Qe2 {[%clk 0:01:15]}  Kf7 {[%clk 0:01:56]} 19. Bxc6 {[%clk 0:01:00]}  bxc6 {[%clk 0:01:55]} 20. Ne5+ {[%clk 0:00:57]}  Bxe5 {[%clk 0:01:43]} 21. fxe5 {[%clk 0:00:58]}  Kg7 {[%clk 0:01:43]} 22. b4 {[%clk 0:00:21]}  h4 {[%clk 0:01:40]} 23. Nb3 {[%clk 0:00:15]}  axb4 {[%clk 0:01:24]} 24. cxb4 {[%clk 0:00:16]}  Qb6 {[%clk 0:01:22]} 25. Bd2 {[%clk 0:00:12]}  h3 {[%clk 0:01:20]} 26. g3 {[%clk 0:00:11]}  Rhe8 {[%clk 0:00:52]} 27. Nc5 {[%clk 0:00:11]}  Bc8 {[%clk 0:00:52]} 28. a5 {[%clk 0:00:10]}  Qc7 {[%clk 0:00:48]} 29. Bc3 {[%clk 0:00:08]}  Rd8 {[%clk 0:00:41]} 30. Bd4 {[%clk 0:00:06]}  Rb8 {[%clk 0:00:40]} 31. Qd2 {[%clk 0:00:04]}  Qe7 {[%clk 0:00:36]} 32. a6 {[%clk 0:00:04]}  Ra8 {[%clk 0:00:32]} 33. a7 {[%clk 0:00:04]}  Bd7 {[%clk 0:00:32]} 34. Qe3 {[%clk 0:00:03]}  Be8 {[%clk 0:00:32]} 35. Qd2 {[%clk 0:00:02]}  Bf7 {[%clk 0:00:15]} 36. Qe3 {[%clk 0:00:02]}  Rh8 {[%clk 0:00:12]} 37. Qd2 {[%clk 0:00:01]}  Rh5 {[%clk 0:00:12]} 38. Qe3 {[%clk 0:00:01]}  Qg5 {[%clk 0:00:12]} 39. Qxg5 {[%clk 0:00:01]}  Rxg5 {[%clk 0:00:12]} 40. Nd7 {[%clk 0:00:02]}  Rh5 {[%clk 0:00:09]} 41. Nb6 {[%clk 0:00:02]}  Rhh8 {[%clk 0:00:10]} 42. Nxa8 {[%clk 0:00:01]}  Rxa8 {[%clk 0:00:11]} 43. Ra2 {[%clk 0:00:01]}  Be8 {[%clk 0:00:07]} 44. Rc1 {[%clk 0:00:02]}  Kf7 {[%clk 0:00:06]} 45. Ra3 {[%clk 0:00:02]}  Ke7 {[%clk 0:00:06]} 46. Rac3 {[%clk 0:00:02]}  Kd7 {[%clk 0:00:06]} 47. b5 {[%clk 0:00:02]}  cxb5 {[%clk 0:00:03]} 48. Rc7+ {[%clk 0:00:02]}  Kd8 {[%clk 0:00:03]} 49. Rb7 {[%clk 0:00:03]}  Bd7 {[%clk 0:00:00]} 50. Rcc7 {[%clk 0:00:03]} 1-0


[Site "https://www.chess.com"]

[Event "Titled Tuesday Blitz August 15 Early 2023"]
[White "Deng, Henry"]
[Black "Konenkin, Dmitry"]
[WhiteFideId "30965454"]
[BlackFideId "4185781"]
[WhiteElo "2558"]
[BlackElo "2290"]
[Result "1-0"]
[Round "6"]
[TimeControl "180+1"]
[Date "2023.08.15"]
[WhiteClock "0:00:26"]
[BlackClock "0:00:00"]
[Board "161"]

1. e4 {[%clk 0:03:00]}  d6 {[%clk 0:03:00]} 2. d4 {[%clk 0:02:58]}  Nf6 {[%clk 0:03:01]} 3. Nc3 {[%clk 0:02:58]}  e5 {[%clk 0:03:01]} 4. Nf3 {[%clk 0:02:58]}  Nbd7 {[%clk 0:03:01]} 5. Bc4 {[%clk 0:02:58]}  Be7 {[%clk 0:03:00]} 6. a4 {[%clk 0:02:59]}  c6 {[%clk 0:03:00]} 7. a5 {[%clk 0:02:58]}  Qc7 {[%clk 0:02:59]} 8. O-O {[%clk 0:02:54]}  h6 {[%clk 0:02:58]} 9. Re1 {[%clk 0:02:51]}  Nf8 {[%clk 0:02:58]} 10. Nh4 {[%clk 0:02:51]}  g5 {[%clk 0:02:32]} 11. Nf5 {[%clk 0:02:51]}  Bxf5 {[%clk 0:02:33]} 12. exf5 {[%clk 0:02:52]}  O-O-O {[%clk 0:02:26]} 13. dxe5 {[%clk 0:02:51]}  dxe5 {[%clk 0:02:26]} 14. Qe2 {[%clk 0:02:51]}  Bd6 {[%clk 0:02:16]} 15. Be3 {[%clk 0:02:49]}  Kb8 {[%clk 0:02:14]} 16. h3 {[%clk 0:02:41]}  Rg8 {[%clk 0:02:00]} 17. Reb1 {[%clk 0:02:27]}  g4 {[%clk 0:01:56]} 18. h4 {[%clk 0:02:18]}  Nh5 {[%clk 0:01:48]} 19. b4 {[%clk 0:02:04]}  Nf4 {[%clk 0:01:48]} 20. Qf1 {[%clk 0:01:41]}  g3 {[%clk 0:01:40]} 21. f3 {[%clk 0:01:39]}  Qe7 {[%clk 0:01:34]} 22. Ne4 {[%clk 0:01:33]}  Qxh4 {[%clk 0:01:12]} 23. Nxg3 {[%clk 0:01:29]}  Qxg3 {[%clk 0:01:06]} 24. Bxf4 {[%clk 0:01:22]}  exf4 {[%clk 0:00:57]} 25. a6 {[%clk 0:01:21]}  Be5 {[%clk 0:00:57]} 26. Rd1 {[%clk 0:01:13]}  Bd4+ {[%clk 0:00:54]} 27. Rxd4 {[%clk 0:01:13]}  Rxd4 {[%clk 0:00:55]} 28. Re1 {[%clk 0:01:06]}  Nd7 {[%clk 0:00:48]} 29. Bxf7 {[%clk 0:01:03]}  Rf8 {[%clk 0:00:33]} 30. Be6 {[%clk 0:00:55]}  Nb6 {[%clk 0:00:20]} 31. axb7 {[%clk 0:00:55]}  Kxb7 {[%clk 0:00:20]} 32. Ra1 {[%clk 0:00:54]}  Kb8 {[%clk 0:00:07]} 33. Qa6 {[%clk 0:00:48]}  Rd7 {[%clk 0:00:03]} 34. Bxd7 {[%clk 0:00:47]}  Nxd7 {[%clk 0:00:04]} 35. Qxa7+ {[%clk 0:00:47]}  Kc8 {[%clk 0:00:05]} 36. Rd1 {[%clk 0:00:32]}  Qg7 {[%clk 0:00:04]} 37. Rxd7 {[%clk 0:00:25]}  Qxd7 {[%clk 0:00:04]} 38. Qa8+ {[%clk 0:00:26]}  Kc7 {[%clk 0:00:05]} 39. Qxf8 {[%clk 0:00:26]}  Qd1+ {[%clk 0:00:06]} 40. Kh2 {[%clk 0:00:27]}  Qxc2 {[%clk 0:00:06]} 41. Qe7+ {[%clk 0:00:26]}  Kb6 {[%clk 0:00:06]} 42. f6 {[%clk 0:00:27]}  Qg6 {[%clk 0:00:05]} 43. f7 {[%clk 0:00:25]}  Qh5+ {[%clk 0:00:00]} 44. Kg1 {[%clk 0:00:26]} 1-0


[Site "https://www.chess.com"]

[Event "Titled Tuesday Blitz August 15 Early 2023"]
[White "djathtaspogradec"]
[Black "Gatterer, Florian"]
[BlackFideId "811688"]
[WhiteElo "2476"]
[BlackElo "2337"]
[Result "0-1"]
[Round "6"]
[TimeControl "180+1"]
[Date "2023.08.15"]
[WhiteClock "0:01:03"]
[BlackClock "0:00:35"]
[Board "162"]

1. Nf3 {[%clk 0:03:00]}  Nf6 {[%clk 0:02:59]} 2. c4 {[%clk 0:03:00]}  g6 {[%clk 0:02:54]} 3. g3 {[%clk 0:03:01]}  Bg7 {[%clk 0:02:50]} 4. Bg2 {[%clk 0:03:02]}  O-O {[%clk 0:02:50]} 5. O-O {[%clk 0:03:03]}  c5 {[%clk 0:02:50]} 6. d4 {[%clk 0:03:04]}  d5 {[%clk 0:02:49]} 7. cxd5 {[%clk 0:03:03]}  cxd4 {[%clk 0:02:47]} 8. Qxd4 {[%clk 0:03:02]}  Nxd5 {[%clk 0:02:41]} 9. Qh4 {[%clk 0:03:02]}  Nc6 {[%clk 0:02:41]} 10. Bh6 {[%clk 0:03:00]}  Qa5 {[%clk 0:02:17]} 11. Ng5 {[%clk 0:02:52]}  Nf6 {[%clk 0:02:04]} 12. Nc3 {[%clk 0:02:50]}  Qb4 {[%clk 0:01:46]} 13. Nce4 {[%clk 0:02:43]}  Nxe4 {[%clk 0:01:47]} 14. Bxe4 {[%clk 0:02:44]}  Bf6 {[%clk 0:01:37]} 15. Bxf8 {[%clk 0:02:26]}  Bxg5 {[%clk 0:01:35]} 16. Qxg5 {[%clk 0:02:25]}  Qxe4 {[%clk 0:01:26]} 17. Bh6 {[%clk 0:01:56]}  Bh3 {[%clk 0:01:11]} 18. f3 {[%clk 0:01:56]}  Qd4+ {[%clk 0:00:40]} 19. e3 {[%clk 0:01:03]}  Qxb2 {[%clk 0:00:35]} 0-1


[Site "https://www.chess.com"]

[Event "Titled Tuesday Blitz August 15 Early 2023"]
[White "Smietanska, Wiktoria"]
[Black "MrAnnihilation"]
[WhiteFideId "21869359"]
[WhiteElo "2274"]
[BlackElo "2441"]
[Result "1-0"]
[Round "6"]
[TimeControl "180+1"]
[Date "2023.08.15"]
[WhiteClock "0:00:10"]
[BlackClock "0:00:13"]
[Board "164"]

1. c4 {[%clk 0:03:00]}  e5 {[%clk 0:02:55]} 2. Nc3 {[%clk 0:03:00]}  Nf6 {[%clk 0:02:53]} 3. Nf3 {[%clk 0:03:00]}  Bb4 {[%clk 0:02:51]} 4. Nxe5 {[%clk 0:02:59]}  O-O {[%clk 0:02:50]} 5. d4 {[%clk 0:02:58]}  Re8 {[%clk 0:02:48]} 6. Nd3 {[%clk 0:02:57]}  Bxc3+ {[%clk 0:02:42]} 7. bxc3 {[%clk 0:02:58]}  d5 {[%clk 0:02:38]} 8. cxd5 {[%clk 0:02:57]}  Qxd5 {[%clk 0:02:39]} 9. e3 {[%clk 0:02:53]}  Na6 {[%clk 0:02:22]} 10. Nf4 {[%clk 0:02:48]}  Qd6 {[%clk 0:02:07]} 11. Be2 {[%clk 0:02:44]}  Qc6 {[%clk 0:02:04]} 12. Qb3 {[%clk 0:02:34]}  Bf5 {[%clk 0:01:46]} 13. Bb5 {[%clk 0:02:15]}  Qe4 {[%clk 0:01:29]} 14. Bxe8 {[%clk 0:02:13]}  Rxe8 {[%clk 0:01:30]} 15. O-O {[%clk 0:02:11]}  g5 {[%clk 0:00:57]} 16. Ne2 {[%clk 0:02:04]}  Be6 {[%clk 0:00:48]} 17. Ng3 {[%clk 0:01:58]}  Bxb3 {[%clk 0:00:37]} 18. Nxe4 {[%clk 0:01:58]}  Nxe4 {[%clk 0:00:38]} 19. axb3 {[%clk 0:01:58]}  Nxc3 {[%clk 0:00:39]} 20. Bb2 {[%clk 0:01:53]}  Nd5 {[%clk 0:00:37]} 21. Ra5 {[%clk 0:01:49]}  c6 {[%clk 0:00:35]} 22. Re1 {[%clk 0:01:36]}  f5 {[%clk 0:00:35]} 23. Bc1 {[%clk 0:01:28]}  h6 {[%clk 0:00:21]} 24. f3 {[%clk 0:01:26]}  Kg7 {[%clk 0:00:18]} 25. e4 {[%clk 0:01:23]}  fxe4 {[%clk 0:00:17]} 26. fxe4 {[%clk 0:01:24]}  Nc3 {[%clk 0:00:16]} 27. e5 {[%clk 0:01:22]}  Rd8 {[%clk 0:00:12]} 28. Bb2 {[%clk 0:01:18]}  Nd5 {[%clk 0:00:11]} 29. Raa1 {[%clk 0:01:11]}  Rf8 {[%clk 0:00:09]} 30. Rf1 {[%clk 0:01:11]}  Rxf1+ {[%clk 0:00:09]} 31. Rxf1 {[%clk 0:01:12]}  Nac7 {[%clk 0:00:09]} 32. Ba3 {[%clk 0:01:07]}  Nb5 {[%clk 0:00:06]} 33. Bf8+ {[%clk 0:01:05]}  Kg6 {[%clk 0:00:05]} 34. e6 {[%clk 0:01:02]}  Nxd4 {[%clk 0:00:02]} 35. e7 {[%clk 0:01:02]}  Nc7 {[%clk 0:00:03]} 36. Rd1 {[%clk 0:00:58]}  Ne2+ {[%clk 0:00:02]} 37. Kf2 {[%clk 0:00:58]}  Nf4 {[%clk 0:00:03]} 38. Rd6+ {[%clk 0:00:56]}  Kf7 {[%clk 0:00:03]} 39. Rxh6 {[%clk 0:00:54]}  Nfd5 {[%clk 0:00:03]} 40. Rh5 {[%clk 0:00:36]}  Ne6 {[%clk 0:00:03]} 41. Rh8 {[%clk 0:00:31]}  Nf6 {[%clk 0:00:03]} 42. g3 {[%clk 0:00:20]}  a5 {[%clk 0:00:03]} 43. h4 {[%clk 0:00:19]}  b5 {[%clk 0:00:04]} 44. hxg5 {[%clk 0:00:18]}  Nxg5 {[%clk 0:00:05]} 45. Bh6 {[%clk 0:00:17]}  Nge4+ {[%clk 0:00:04]} 46. Ke3 {[%clk 0:00:16]}  c5 {[%clk 0:00:03]} 47. e8=Q+ {[%clk 0:00:12]}  Nxe8 {[%clk 0:00:02]} 48. Kxe4 {[%clk 0:00:12]}  Nd6+ {[%clk 0:00:02]} 49. Kd5 {[%clk 0:00:12]}  Nf5 {[%clk 0:00:02]} 50. Bf4 {[%clk 0:00:09]}  a4 {[%clk 0:00:02]} 51. bxa4 {[%clk 0:00:09]}  bxa4 {[%clk 0:00:03]} 52. Ra8 {[%clk 0:00:10]}  Ne7+ {[%clk 0:00:02]} 53. Kxc5 {[%clk 0:00:09]}  Ke6 {[%clk 0:00:03]} 54. Rxa4 {[%clk 0:00:09]}  Kf5 {[%clk 0:00:03]} 55. Kd6 {[%clk 0:00:08]}  Ng6 {[%clk 0:00:03]} 56. Ra5+ {[%clk 0:00:08]}  Kg4 {[%clk 0:00:04]} 57. Rg5+ {[%clk 0:00:08]}  Kf3 {[%clk 0:00:04]} 58. Rxg6 {[%clk 0:00:08]}  Ke4 {[%clk 0:00:05]} 59. Be5 {[%clk 0:00:08]}  Kf5 {[%clk 0:00:06]} 60. Rf6+ {[%clk 0:00:08]}  Ke4 {[%clk 0:00:07]} 61. g4 {[%clk 0:00:08]}  Ke3 {[%clk 0:00:07]} 62. g5 {[%clk 0:00:09]}  Ke4 {[%clk 0:00:08]} 63. g6 {[%clk 0:00:08]}  Ke3 {[%clk 0:00:09]} 64. g7 {[%clk 0:00:09]}  Ke4 {[%clk 0:00:10]} 65. g8=Q {[%clk 0:00:10]}  Kd3 {[%clk 0:00:11]} 66. Qd5+ {[%clk 0:00:09]}  Ke3 {[%clk 0:00:11]} 67. Rf3+ {[%clk 0:00:10]}  Ke2 {[%clk 0:00:12]} 68. Qd3+ {[%clk 0:00:10]}  Ke1 {[%clk 0:00:13]} 69. Rf1# {[%clk 0:00:10]} 1-0


[Site "https://www.chess.com"]

[Event "Titled Tuesday Blitz August 15 Early 2023"]
[White "Harriott, Tyrell"]
[Black "Kula, Robert"]
[WhiteFideId "2086484"]
[BlackFideId "1101218"]
[WhiteElo "2419"]
[BlackElo "2245"]
[Result "1-0"]
[Round "6"]
[TimeControl "180+1"]
[Date "2023.08.15"]
[WhiteClock "0:02:24"]
[BlackClock "0:00:00"]
[Board "165"]

1. d4 {[%clk 0:03:00]}  d5 {[%clk 0:02:59]} 2. e3 {[%clk 0:03:01]}  Nf6 {[%clk 0:02:58]} 3. Bd3 {[%clk 0:02:57]}  Bg4 {[%clk 0:02:56]} 4. Ne2 {[%clk 0:02:56]}  e6 {[%clk 0:02:55]} 5. O-O {[%clk 0:02:56]}  Bd6 {[%clk 0:02:54]} 6. f4 {[%clk 0:02:56]}  O-O {[%clk 0:02:49]} 7. Nd2 {[%clk 0:02:57]}  Nbd7 {[%clk 0:02:47]} 8. Nf3 {[%clk 0:02:57]}  c5 {[%clk 0:02:47]} 9. c3 {[%clk 0:02:57]}  Ne4 {[%clk 0:02:42]} 10. Bxe4 {[%clk 0:02:56]}  dxe4 {[%clk 0:02:41]} 11. Ng5 {[%clk 0:02:57]}  Nf6 {[%clk 0:02:22]} 12. Qc2 {[%clk 0:02:56]}  h6 {[%clk 0:02:18]} 13. Nh3 {[%clk 0:02:56]}  Bxh3 {[%clk 0:02:12]} 14. gxh3 {[%clk 0:02:56]}  Rc8 {[%clk 0:02:10]} 15. Ng3 {[%clk 0:02:53]}  cxd4 {[%clk 0:01:17]} 16. exd4 {[%clk 0:02:54]}  Nd5 {[%clk 0:01:17]} 17. Nxe4 {[%clk 0:02:52]}  Bb8 {[%clk 0:01:18]} 18. Qg2 {[%clk 0:02:51]}  Kh7 {[%clk 0:01:09]} 19. f5 {[%clk 0:02:49]}  exf5 {[%clk 0:00:41]} 20. Rxf5 {[%clk 0:02:50]}  f6 {[%clk 0:00:41]} 21. Rxd5 {[%clk 0:02:46]}  Qxd5 {[%clk 0:00:36]} 22. Nxf6+ {[%clk 0:02:46]}  Rxf6 {[%clk 0:00:37]} 23. Qxd5 {[%clk 0:02:45]}  Rcf8 {[%clk 0:00:33]} 24. Be3 {[%clk 0:02:40]}  Rf3 {[%clk 0:00:32]} 25. Qe4+ {[%clk 0:02:37]}  Kh8 {[%clk 0:00:32]} 26. Kh1 {[%clk 0:02:35]}  b6 {[%clk 0:00:30]} 27. Rg1 {[%clk 0:02:34]}  R3f7 {[%clk 0:00:27]} 28. d5 {[%clk 0:02:26]}  Bd6 {[%clk 0:00:23]} 29. Bd4 {[%clk 0:02:25]}  Re7 {[%clk 0:00:00]} 30. Qg6 {[%clk 0:02:24]} 1-0


[Site "https://www.chess.com"]

[Event "Titled Tuesday Blitz August 15 Early 2023"]
[White "Herman, Matthew"]
[Black "KSho99"]
[WhiteFideId "2028964"]
[WhiteElo "2440"]
[BlackElo "2210"]
[Result "1-0"]
[Round "6"]
[TimeControl "180+1"]
[Date "2023.08.15"]
[WhiteClock "0:00:08"]
[BlackClock "0:00:00"]
[Board "173"]

1. e4 {[%clk 0:03:00]}  e6 {[%clk 0:02:59]} 2. d4 {[%clk 0:02:55]}  d5 {[%clk 0:02:59]} 3. Nd2 {[%clk 0:02:49]}  Be7 {[%clk 0:02:59]} 4. Ngf3 {[%clk 0:02:36]}  Nf6 {[%clk 0:02:58]} 5. Bd3 {[%clk 0:02:34]}  c5 {[%clk 0:02:54]} 6. e5 {[%clk 0:02:29]}  Nfd7 {[%clk 0:02:54]} 7. c3 {[%clk 0:02:27]}  b6 {[%clk 0:02:50]} 8. h4 {[%clk 0:02:22]}  Ba6 {[%clk 0:02:47]} 9. Bxa6 {[%clk 0:02:21]}  Nxa6 {[%clk 0:02:47]} 10. a3 {[%clk 0:01:36]}  Rc8 {[%clk 0:02:29]} 11. h5 {[%clk 0:01:14]}  cxd4 {[%clk 0:02:21]} 12. cxd4 {[%clk 0:01:14]}  b5 {[%clk 0:02:19]} 13. Rh3 {[%clk 0:01:01]}  Nb6 {[%clk 0:02:05]} 14. Rg3 {[%clk 0:01:01]}  Kf8 {[%clk 0:02:04]} 15. Kf1 {[%clk 0:00:38]}  Qc7 {[%clk 0:01:55]} 16. Kg1 {[%clk 0:00:38]}  Qc2 {[%clk 0:01:54]} 17. Qe2 {[%clk 0:00:39]}  Nc7 {[%clk 0:01:12]} 18. Ne1 {[%clk 0:00:30]}  Qf5 {[%clk 0:01:04]} 19. Nd3 {[%clk 0:00:19]}  Nc4 {[%clk 0:00:57]} 20. Nb3 {[%clk 0:00:15]}  Ne8 {[%clk 0:00:40]} 21. Qd1 {[%clk 0:00:12]}  Bh4 {[%clk 0:00:30]} 22. Rh3 {[%clk 0:00:11]}  Be7 {[%clk 0:00:25]} 23. a4 {[%clk 0:00:11]}  b4 {[%clk 0:00:22]} 24. a5 {[%clk 0:00:11]}  Nc7 {[%clk 0:00:18]} 25. a6 {[%clk 0:00:12]}  Nb5 {[%clk 0:00:17]} 26. Ra4 {[%clk 0:00:10]}  Qe4 {[%clk 0:00:13]} 27. Nxb4 {[%clk 0:00:07]}  Bxb4 {[%clk 0:00:05]} 28. Rxb4 {[%clk 0:00:08]}  Nc7 {[%clk 0:00:05]} 29. Ra4 {[%clk 0:00:08]}  Nb5 {[%clk 0:00:05]} 30. Rb4 {[%clk 0:00:07]}  Nc7 {[%clk 0:00:05]} 31. Nc5 {[%clk 0:00:08]}  Qf5 {[%clk 0:00:02]} 32. Rb7 {[%clk 0:00:08]}  Nb5 {[%clk 0:00:00]} 33. Rf3 {[%clk 0:00:08]} 1-0


[Site "https://www.chess.com"]

[Event "Titled Tuesday Blitz August 15 Early 2023"]
[White "Mirzanurov, Bulat"]
[Black "Daeschler, Florian"]
[WhiteFideId "4184521"]
[BlackFideId "20678193"]
[WhiteElo "2207"]
[BlackElo "2391"]
[Result "0-1"]
[Round "6"]
[TimeControl "180+1"]
[Date "2023.08.15"]
[WhiteClock "0:00:10"]
[BlackClock "0:01:42"]
[Board "174"]

1. e4 {[%clk 0:03:00]}  c5 {[%clk 0:02:59]} 2. Nf3 {[%clk 0:03:00]}  d6 {[%clk 0:03:00]} 3. d4 {[%clk 0:02:59]}  cxd4 {[%clk 0:03:00]} 4. Nxd4 {[%clk 0:02:59]}  Nf6 {[%clk 0:03:01]} 5. f3 {[%clk 0:02:59]}  Nc6 {[%clk 0:03:00]} 6. Nc3 {[%clk 0:02:58]}  e5 {[%clk 0:02:59]} 7. Nb3 {[%clk 0:02:56]}  Be6 {[%clk 0:02:58]} 8. Be3 {[%clk 0:02:56]}  Be7 {[%clk 0:02:59]} 9. Qe2 {[%clk 0:02:55]}  O-O {[%clk 0:02:59]} 10. O-O-O {[%clk 0:02:54]}  Qc8 {[%clk 0:02:56]} 11. Kb1 {[%clk 0:02:47]}  a5 {[%clk 0:02:56]} 12. a4 {[%clk 0:02:43]}  Nb4 {[%clk 0:02:50]} 13. Rg1 {[%clk 0:02:24]}  d5 {[%clk 0:02:51]} 14. exd5 {[%clk 0:02:22]}  Nfxd5 {[%clk 0:02:51]} 15. Nxd5 {[%clk 0:02:21]}  Bxd5 {[%clk 0:02:48]} 16. c4 {[%clk 0:02:09]}  Qf5+ {[%clk 0:02:33]} 17. Ka1 {[%clk 0:01:20]}  Qd7 {[%clk 0:02:33]} 18. Nc1 {[%clk 0:00:59]}  Qxa4+ {[%clk 0:02:32]} 19. Kb1 {[%clk 0:00:59]}  Be6 {[%clk 0:02:14]} 20. b3 {[%clk 0:00:46]}  Qc6 {[%clk 0:01:55]} 21. f4 {[%clk 0:00:20]}  a4 {[%clk 0:01:51]} 22. Qb2 {[%clk 0:00:13]}  Bf5+ {[%clk 0:01:42]} 23. Ka1 {[%clk 0:00:10]} 0-1


[Site "https://www.chess.com"]

[Event "Titled Tuesday Blitz August 15 Early 2023"]
[White "Tqebuchava, Zurab"]
[Black "Rian, Kapriaga"]
[WhiteFideId "13601113"]
[BlackFideId "7103263"]
[WhiteElo "2203"]
[BlackElo "2331"]
[Result "0-1"]
[Round "6"]
[TimeControl "180+1"]
[Date "2023.08.15"]
[WhiteClock "0:00:00"]
[BlackClock "0:01:40"]
[Board "176"]

1. e4 {[%clk 0:02:59]}  c6 {[%clk 0:02:55]} 2. d4 {[%clk 0:02:57]}  d5 {[%clk 0:02:54]} 3. exd5 {[%clk 0:02:54]}  cxd5 {[%clk 0:02:53]} 4. Bd3 {[%clk 0:02:52]}  Nc6 {[%clk 0:02:52]} 5. c3 {[%clk 0:02:51]}  Nf6 {[%clk 0:02:52]} 6. h3 {[%clk 0:02:50]}  g6 {[%clk 0:02:50]} 7. Nf3 {[%clk 0:02:50]}  Bf5 {[%clk 0:02:50]} 8. O-O {[%clk 0:02:41]}  Bg7 {[%clk 0:02:47]} 9. Re1 {[%clk 0:02:39]}  O-O {[%clk 0:02:45]} 10. Bf4 {[%clk 0:02:38]}  Bxd3 {[%clk 0:02:42]} 11. Qxd3 {[%clk 0:02:37]}  e6 {[%clk 0:02:42]} 12. Ne5 {[%clk 0:02:33]}  Nxe5 {[%clk 0:02:41]} 13. Bxe5 {[%clk 0:02:31]}  a6 {[%clk 0:02:40]} 14. Nd2 {[%clk 0:02:24]}  b5 {[%clk 0:02:38]} 15. a4 {[%clk 0:02:07]}  Qb6 {[%clk 0:02:36]} 16. axb5 {[%clk 0:01:58]}  axb5 {[%clk 0:02:34]} 17. Bxf6 {[%clk 0:01:54]}  Bxf6 {[%clk 0:02:32]} 18. Nb3 {[%clk 0:01:54]}  b4 {[%clk 0:02:26]} 19. Nc5 {[%clk 0:01:52]}  bxc3 {[%clk 0:02:25]} 20. bxc3 {[%clk 0:01:40]}  Rxa1 {[%clk 0:02:15]} 21. Rxa1 {[%clk 0:01:40]}  Rd8 {[%clk 0:02:13]} 22. Qf3 {[%clk 0:01:33]}  Bg7 {[%clk 0:02:12]} 23. h4 {[%clk 0:01:32]}  e5 {[%clk 0:02:11]} 24. Ra6 {[%clk 0:01:12]}  Qb1+ {[%clk 0:02:05]} 25. Kh2 {[%clk 0:01:12]}  exd4 {[%clk 0:02:04]} 26. Ra7 {[%clk 0:00:58]}  Qb8+ {[%clk 0:02:02]} 27. Kg1 {[%clk 0:00:46]}  Qxa7 {[%clk 0:02:00]} 28. cxd4 {[%clk 0:00:42]}  Bxd4 {[%clk 0:01:59]} 29. Nd3 {[%clk 0:00:38]}  Bg7 {[%clk 0:01:58]} 30. h5 {[%clk 0:00:37]}  d4 {[%clk 0:01:56]} 31. Qf4 {[%clk 0:00:34]}  Re8 {[%clk 0:01:48]} 32. h6 {[%clk 0:00:32]}  Qa1+ {[%clk 0:01:42]} 33. Kh2 {[%clk 0:00:31]}  Qd1 {[%clk 0:01:41]} 34. Ne5 {[%clk 0:00:00]}  Bxe5 {[%clk 0:01:40]} 0-1


[Site "https://www.chess.com"]